fUSD/lending_fUSD_20250222
["ID","MTS","AMOUNT","RATE_DAILY","PERIOD"]
[354106471,1740245465952,-500.0,0.0001355,2]
[354106472,1740245465962,-500.0,0.0001355,2]
[354106473,1740245465972,-500.0,0.0001355,2]
[354106474,1740245465982,-500.0,0.0001355,2]
[354106475,1740245465991,-500.0,0.0001355,2]
[354106476,1740245466001,-500.0,0.0001355,2]
[354106477,1740245466010,-500.0,0.0001355,2]
[354106478,1740245466020,-500.0,0.0001355,2]
[354106479,1740245466029,-500.0,0.0001355,2]
[354106480,1740245466039,-500.0,0.0001355,2]
[354106481,1740245466049,-500.0,0.0001355,2]
[354106482,1740245466059,-500.0,0.0001355,2]
[354106483,1740245466068,-500.0,0.0001355,2]
[354106484,1740245466078,-500.0,0.0001355,2]
[354106485,1740245466088,-500.0,0.0001355,2]
[354106486,1740245466098,-500.0,0.0001355,2]
[354106487,1740245466107,-500.0,0.0001355,2]
[354106488,1740245466117,-500.0,0.0001355,2]
[354106489,1740245466127,-269.68,0.0001355,2]
[354106490,1740245466137,-500.0,0.0001355,2]
[354106491,1740245466147,-500.0,0.0001355,2]
[354106492,1740245466156,-500.0,0.0001355,2]
[354106493,1740245466166,-500.0,0.0001355,2]
[354106494,1740245466175,-1085.32,0.00013551,2]
[354106495,1740245466184,-500.0,0.00013552,2]
[354106496,1740245466193,-346.32,0.00013552,2]
[354106497,1740245466203,-500.0,0.00013552,2]
[354106498,1740245466212,-434.88,0.00013552,2]
[354106499,1740245466222,-500.0,0.00013552,2]
[354106500,1740245466231,-196.6,0.00013552,2]
[354106501,1740245466240,-500.0,0.00013552,2]
[354106502,1740245466250,-506.64,0.00013552,2]
[354106503,1740245466259,-500.0,0.00013552,2]
[354106504,1740245466269,-500.0,0.00013552,2]
[354106505,1740245466278,-500.0,0.00013552,2]
[354106506,1740245466287,-500.0,0.00013552,2]
[354106507,1740245466296,-500.0,0.00013552,2]
[354106508,1740245466306,-500.0,0.00013552,2]
[354106509,1740245466316,-500.0,0.00013552,2]
[354106510,1740245466325,-500.0,0.00013552,2]
[354106511,1740245466334,-500.0,0.00013552,2]
[354106512,1740245466343,-500.0,0.00013552,2]
[354106513,1740245466352,-500.0,0.00013552,2]
[354106514,1740245466361,-698.53,0.00013552,2]
[354106515,1740245466371,-500.0,0.00013552,2]
[354106516,1740245466380,-593.32,0.00013552,2]
[354106517,1740245466389,-500.0,0.00013552,2]
[354106518,1740245466399,-500.0,0.00013552,2]
[354106519,1740245466408,-500.0,0.00013552,2]
[354106520,1740245466417,-284.64,0.00013552,2]
[354106521,1740245466426,-500.0,0.00013552,2]
[354106522,1740245466436,-526.03,0.00013552,2]
[354106523,1740245466445,-286.48,0.00013552,2]
[354106524,1740245466454,-500.0,0.00013552,2]
[354106525,1740245466463,-640.76,0.00013552,2]
[354106526,1740245466472,-558.84,0.00013552,2]
[354106527,1740245466480,-500.0,0.00013552,2]
[354106528,1740245466489,-500.0,0.00013552,2]
[354106529,1740245466499,-644.56,0.00013552,2]
[354106530,1740245466508,-500.0,0.00013552,2]
[354106531,1740245466517,-500.0,0.00013552,2]
[354106532,1740245466526,-500.0,0.00013575,2]
[354106533,1740245466535,-125553.10251986,0.0001359,2]
[354106534,1740245466544,-705.78760957,0.00013614,2]
[354106535,1740245466554,-500.0,0.00013633,2]
[354106536,1740245466563,-226.08,0.00013633,2]
[354106537,1740245466573,-500.95,0.00013633,2]
[354106538,1740245466583,-532.4,0.00013633,2]
[354106539,1740245466593,-500.0,0.00013633,2]
[354106540,1740245466603,-500.0,0.00013633,2]
[354106541,1740245466612,-500.0,0.00013633,2]
[354106542,1740245466622,-500.0,0.00013633,2]
[354106543,1740245466631,-500.0,0.00013633,2]
[354106544,1740245466641,-500.0,0.00013633,2]
[354106545,1740245466651,-500.0,0.00013633,2]
[354106546,1740245466660,-695.79,0.00013633,2]
[354106547,1740245466670,-500.0,0.00013633,2]
[354106548,1740245466679,-1511.41,0.00013633,2]
[354106549,1740245466688,-500.0,0.00013633,2]
[354106550,1740245466698,-500.0,0.00013633,2]
[354106551,1740245466708,-500.0,0.00013633,2]
[354106552,1740245466718,-500.0,0.00013633,2]
[354106553,1740245466728,-500.0,0.00013633,2]
[354106554,1740245466741,-500.0,0.00013633,2]
[354106555,1740245466751,-500.0,0.00013633,2]
[354106556,1740245466761,-500.0,0.00013633,2]
[354106557,1740245466770,-500.0,0.00013633,2]
[354106558,1740245466779,-500.0,0.00013633,2]
[354106559,1740245466789,-500.0,0.00013633,2]
[354106560,1740245466798,-500.0,0.00013633,2]
[354106561,1740245466808,-500.0,0.00013633,2]
[354106562,1740245466823,-500.0,0.00013633,2]
[354106563,1740245466840,-500.0,0.00013633,2]
[354106564,1740245466850,-500.0,0.00013633,2]
[354106565,1740245466859,-572.32,0.00013633,2]
[354106566,1740245466869,-500.0,0.00013633,2]
[354106567,1740245466878,-500.0,0.00013633,2]
[354106568,1740245466888,-500.0,0.00013633,2]
[354106569,1740245466898,-226.44,0.00013633,2]
[354106570,1740245466907,-500.0,0.00013633,2]
[354106571,1740245466917,-500.0,0.00013634,2]
[354106572,1740245466926,-304.99,0.00013634,2]
[354106573,1740245466936,-585.15,0.00013634,2]
[354106574,1740245466945,-301.04,0.00013634,2]
[354106575,1740245466954,-500.0,0.00013634,2]
[354106576,1740245466964,-521.12,0.00013634,2]
[354106577,1740245466973,-496.16,0.00013634,2]
[354106578,1740245466983,-213.44,0.00013634,2]
[354106579,1740245466993,-500.0,0.00013634,2]
[354106580,1740245467002,-500.0,0.00013634,2]
[354106581,1740245467011,-500.0,0.00013634,2]
[354106582,1740245467020,-500.0,0.00013634,2]
[354106583,1740245467030,-500.0,0.00013634,2]
[354106584,1740245467040,-500.0,0.00013634,2]
[354106585,1740245467049,-500.0,0.00013634,2]
[354106586,1740245467058,-698.53,0.00013634,2]
[354106587,1740245467070,-500.0,0.00013634,2]
[354106588,1740245467079,-593.32,0.00013634,2]
[354106589,1740245467089,-348.0,0.00013634,2]
[354106590,1740245467099,-500.0,0.00013634,2]
[354106591,1740245467109,-500.0,0.00013634,2]
[354106592,1740245467119,-500.0,0.00013634,2]
[354106593,1740245467128,-526.03,0.00013634,2]
[354106594,1740245467138,-500.0,0.00013634,2]
[354106595,1740245467147,-470.24,0.00013634,2]
[354106596,1740245467157,-500.0,0.00013634,2]
[354106597,1740245467168,-500.0,0.00013634,2]
[354106598,1740245467176,-500.0,0.00013634,2]
[354106599,1740245467187,-500.0,0.00013657,2]
[354106600,1740245467197,-1085.32,0.00013688,2]
[354106601,1740245467206,-500.0,0.00013699,2]
[354106602,1740245467215,-500.0,0.00013699,2]
[354106603,1740245467224,-500.0,0.00013699,2]
[354106604,1740245467234,-500.0,0.00013699,2]
[354106605,1740245467244,-150.0,0.00013699,2]
[354106606,1740245467253,-317.0,0.00013699,13]
[354106607,1740245467262,-200.0,0.00013699,2]
[354106608,1740245467273,-179.61,0.00013699,2]
[354106609,1740245467282,-500.0,0.00013699,2]
[354106610,1740245467293,-663.16,0.000137,2]
[354106611,1740245467302,-663.16,0.000137,2]
[354106612,1740245467312,-195.88,0.00013715,2]
[354106613,1740245467323,-500.95,0.00013715,2]
[354106614,1740245467332,-500.0,0.00013715,2]
[354106615,1740245467341,-483.03142134,0.00013715,2]
[354106616,1740245467350,-500.0,0.00013715,2]
[354106617,1740245467359,-554.64,0.00013715,2]
[354106618,1740245467368,-469.56,0.00013715,2]
[354106619,1740245467377,-165.00492,0.00013715,2]
[354106620,1740245467387,-500.0,0.00013715,2]
[354106621,1740245467397,-500.0,0.00013715,2]
[354106622,1740245467406,-695.79,0.00013715,2]
[354106623,1740245467416,-500.0,0.00013715,2]
[354106624,1740245467426,-1511.41,0.00013715,2]
[354106625,1740245467436,-500.0,0.00013715,2]
[354106626,1740245467445,-500.0,0.00013715,2]
[354106627,1740245467456,-500.0,0.00013715,2]
[354106628,1740245467467,-500.0,0.00013715,2]
[354106629,1740245467479,-500.0,0.00013715,2]
[354106630,1740245467490,-500.0,0.00013715,2]
[354106631,1740245467503,-500.0,0.00013715,2]
[354106632,1740245467513,-500.0,0.00013715,2]
[354106633,1740245467523,-500.0,0.00013715,2]
[354106634,1740245467533,-500.0,0.00013715,2]
[354106635,1740245467543,-500.0,0.00013715,2]
[354106636,1740245467554,-500.0,0.00013715,2]
[354106637,1740245467563,-500.0,0.00013715,2]
[354106638,1740245467575,-500.0,0.00013715,2]
[354106639,1740245467584,-500.0,0.00013715,2]
[354106640,1740245467593,-500.0,0.00013715,2]
[354106641,1740245467602,-500.0,0.00013715,2]
[354106642,1740245467611,-500.0,0.00013715,2]
[354106643,1740245467620,-500.0,0.00013715,2]
[354106644,1740245467629,-500.0,0.00013715,2]
[354106645,1740245467639,-500.0,0.00013716,2]
[354106646,1740245467647,-500.0,0.00013716,2]
[354106647,1740245467656,-500.0,0.00013716,2]
[354106648,1740245467665,-586.36860809,0.00013716,2]
[354106649,1740245467674,-500.0,0.00013716,2]
[354106650,1740245467684,-500.0,0.00013716,2]
[354106651,1740245467693,-500.0,0.00013716,2]
[354106652,1740245467702,-500.0,0.00013716,2]
[354106653,1740245467712,-500.0,0.00013716,2]
[354106654,1740245467721,-698.53,0.00013716,2]
[354106655,1740245467730,-500.0,0.00013716,2]
[354106656,1740245467739,-593.32,0.00013716,2]
[354106657,1740245467748,-500.0,0.00013716,2]
[354106658,1740245467757,-500.0,0.00013716,2]
[354106659,1740245467767,-500.0,0.00013716,2]
[354106660,1740245467776,-526.03,0.00013716,2]
[354106661,1740245467785,-500.0,0.00013716,2]
[354106662,1740245467794,-500.0,0.00013716,2]
[354106663,1740245467803,-378.72,0.00013716,2]
[354106664,1740245467812,-500.0,0.00013716,2]
[354106665,1740245467828,-500.0,0.00013739,2]
[354106666,1740245467837,-500.95,0.00013797,2]
[354106667,1740245467847,-500.0,0.00013797,2]
[354106668,1740245467856,-360.96,0.00013797,2]
[354106669,1740245467866,-500.0,0.00013797,2]
[354106670,1740245467875,-500.0,0.00013797,2]
[354106671,1740245467884,-695.79,0.00013797,2]
[354106672,1740245467894,-500.0,0.00013797,2]
[354106673,1740245467904,-1511.41,0.00013797,2]
[354106674,1740245467914,-500.0,0.00013797,2]
[354106675,1740245467923,-500.0,0.00013797,2]
[354106676,1740245467933,-500.0,0.00013797,2]
[354106677,1740245467943,-290.24,0.00013797,2]
[354106678,1740245467952,-500.0,0.00013797,2]
[354106679,1740245467962,-500.0,0.00013797,2]
[354106680,1740245467971,-500.0,0.00013797,2]
[354106681,1740245467980,-500.0,0.00013797,2]
[354106682,1740245467990,-500.0,0.00013797,2]
[354106683,1740245467999,-500.0,0.00013797,2]
[354106684,1740245468009,-167.68,0.00013797,2]
[354106685,1740245468018,-500.0,0.00013797,2]
[354106686,1740245468028,-500.0,0.00013797,2]
[354106687,1740245468038,-500.0,0.00013797,2]
[354106688,1740245468048,-500.0,0.00013797,2]
[354106689,1740245468057,-500.0,0.00013797,2]
[354106690,1740245468067,-203.44,0.00013797,2]
[354106691,1740245468076,-500.0,0.00013797,2]
[354106692,1740245468086,-500.0,0.00013797,2]
[354106693,1740245468096,-500.0,0.00013797,2]
[354106694,1740245468104,-163.92,0.00013798,2]
[354106695,1740245468114,-479.04,0.00013798,2]
[354106696,1740245468123,-363.68,0.00013798,2]
[354106697,1740245468133,-574.2,0.00013798,2]
[354106698,1740245468142,-500.0,0.00013798,2]
[354106699,1740245468152,-573.08,0.00013798,2]
[354106700,1740245468161,-500.0,0.00013798,2]
[354106701,1740245468171,-500.0,0.00013798,2]
[354106702,1740245468180,-698.53,0.00013798,2]
[354106703,1740245468190,-224.0,0.00013798,2]
[354106704,1740245468199,-593.32,0.00013798,2]
[354106705,1740245468209,-500.0,0.00013798,2]
[354106706,1740245468218,-500.0,0.00013798,2]
[354106707,1740245468227,-500.0,0.00013798,2]
[354106708,1740245468343,-526.03,0.00013798,2]
[354106709,1740245468353,-500.0,0.00013798,2]
[354106710,1740245468363,-216.24,0.00013798,2]
[354106711,1740245468372,-500.0,0.00013798,2]
[354106712,1740245468382,-500.0,0.00013821,2]
[354106713,1740245468391,-1085.32,0.00013825,2]
[354106714,1740245468401,-1196.79,0.00013832,7]
[354106715,1740245468411,-1196.79,0.00013832,7]
[354106716,1740245468420,-1196.79,0.00013832,7]
[354106717,1740245468429,-1196.79,0.00013832,7]
[354106718,1740245468438,-500.95,0.00013879,2]
[354106719,1740245468447,-207.56,0.00013879,2]
[354106720,1740245468457,-500.0,0.00013879,2]
[354106721,1740245468467,-577.37,0.00013879,2]
[354106722,1740245468476,-695.79,0.00013879,2]
[354106723,1740245468486,-500.0,0.00013879,2]
[354106724,1740245468495,-1511.41,0.00013879,2]
[354106725,1740245468505,-500.0,0.00013879,2]
[354106726,1740245468514,-500.0,0.00013879,2]
[354106727,1740245468524,-500.0,0.00013879,2]
[354106728,1740245468534,-500.0,0.00013879,2]
[354106729,1740245468542,-500.0,0.00013879,2]
[354106730,1740245468552,-500.0,0.00013879,2]
[354106731,1740245468561,-500.0,0.00013879,2]
[354106732,1740245468571,-500.0,0.00013879,2]
[354106733,1740245468580,-500.0,0.00013879,2]
[354106734,1740245468590,-500.0,0.00013879,2]
[354106735,1740245468599,-500.0,0.00013879,2]
[354106736,1740245468609,-500.0,0.00013879,2]
[354106737,1740245468618,-318.76,0.00013879,2]
[354106738,1740245468628,-500.0,0.00013879,2]
[354106739,1740245468638,-500.0,0.00013879,2]
[354106740,1740245468648,-500.0,0.00013879,2]
[354106741,1740245468657,-540.12,0.00013879,2]
[354106742,1740245468667,-500.0,0.0001388,2]
[354106743,1740245468676,-500.0,0.0001388,2]
[354106744,1740245468685,-500.0,0.0001388,2]
[354106745,1740245468695,-698.53,0.0001388,2]
[354106746,1740245468705,-593.32,0.0001388,2]
[354106747,1740245468714,-531.0,0.0001388,2]
[354106748,1740245468724,-500.0,0.0001388,2]
[354106749,1740245468734,-500.0,0.0001388,2]
[354106750,1740245468743,-526.03,0.0001388,2]
[354106751,1740245468753,-500.0,0.0001388,2]
[354106752,1740245468762,-500.0,0.0001388,2]
[354106753,1740245468771,-500.0,0.00013903,2]
[354106754,1740245468781,-500.95,0.00013961,2]
[354106755,1740245468790,-165.00492,0.00013961,2]
[354106756,1740245468800,-500.0,0.00013961,2]
[354106757,1740245468809,-695.79,0.00013961,2]
[354106758,1740245468820,-500.0,0.00013961,2]
[354106759,1740245468831,-1511.41,0.00013961,2]
[354106760,1740245468840,-500.0,0.00013961,2]
[354106761,1740245468850,-519.72,0.00013961,2]
[354106762,1740245468860,-500.0,0.00013961,2]
[354106763,1740245468870,-500.0,0.00013961,2]
[354106764,1740245468880,-500.0,0.00013961,2]
[354106765,1740245468889,-500.0,0.00013961,2]
[354106766,1740245468899,-647.68,0.00013961,2]
[354106767,1740245468909,-500.0,0.00013961,2]
[354106768,1740245468918,-500.0,0.00013961,2]
[354106769,1740245468927,-500.0,0.00013961,2]
[354106770,1740245468936,-500.0,0.00013961,2]
[354106771,1740245468946,-500.0,0.00013961,2]
[354106772,1740245468956,-297.16,0.00013961,2]
[354106773,1740245468965,-1085.32,0.00013962,2]
[354106774,1740245468975,-500.0,0.00013963,2]
[354106775,1740245468984,-500.0,0.00013963,2]
[354106776,1740245468994,-500.0,0.00013963,2]
[354106777,1740245469003,-698.53,0.00013963,2]
[354106778,1740245469013,-593.32,0.00013963,2]
[354106779,1740245469023,-500.0,0.00013963,2]
[354106780,1740245469032,-500.0,0.00013963,2]
[354106781,1740245469042,-526.03,0.00013963,2]
[354106782,1740245469051,-500.0,0.00013963,2]
[354106783,1740245469061,-500.0,0.00013963,2]
[354106784,1740245469072,-500.0,0.00013986,2]
[354106785,1740245469081,-14272.752217,0.00014,10]
[354106786,1740245469091,-157.0,0.00014,3]
[354106787,1740245469100,-200.70146662,0.00014025,2]
[354106788,1740245469110,-500.95,0.00014044,2]
[354106789,1740245469119,-500.0,0.00014044,2]
[354106790,1740245469129,-695.79,0.00014044,2]
[354106791,1740245469139,-500.0,0.00014044,2]
[354106792,1740245469149,-1511.41,0.00014044,2]
[354106793,1740245469159,-500.0,0.00014044,2]
[354106794,1740245469168,-500.0,0.00014044,2]
[354106795,1740245469177,-247.08,0.00014044,2]
[354106796,1740245469186,-292.76,0.00014044,2]
[354106797,1740245469195,-500.0,0.00014044,2]
[354106798,1740245469204,-500.0,0.00014044,2]
[354106799,1740245469213,-500.0,0.00014044,2]
[354106800,1740245469223,-500.0,0.00014044,2]
[354106801,1740245469233,-500.0,0.00014044,2]
[354106802,1740245469242,-500.0,0.00014044,2]
[354106803,1740245469252,-500.0,0.00014045,2]
[354106804,1740245469261,-429.4,0.00014045,2]
[354106805,1740245469271,-500.0,0.00014045,2]
[354106806,1740245469280,-698.53,0.00014045,2]
[354106807,1740245469290,-593.32,0.00014045,2]
[354106808,1740245469299,-500.0,0.00014045,2]
[354106809,1740245469309,-500.0,0.00014045,2]
[354106810,1740245469320,-526.03,0.00014045,2]
[354106811,1740245469330,-500.0,0.00014045,2]
[354106812,1740245469339,-500.0,0.00014045,2]
[354106813,1740245469348,-500.0,0.00014045,2]
[354106814,1740245469358,-500.0,0.00014045,2]
[354106815,1740245469368,-500.0,0.00014045,2]
[354106816,1740245469378,-500.0,0.00014045,2]
[354106817,1740245469387,-500.0,0.00014045,2]
[354106818,1740245469398,-500.0,0.00014045,2]
[354106819,1740245469407,-500.0,0.00014045,2]
[354106820,1740245469416,-500.0,0.00014045,2]
[354106821,1740245469426,-500.0,0.00014045,2]
[354106822,1740245469435,-500.0,0.00014045,2]
[354106823,1740245469445,-500.0,0.00014045,2]
[354106824,1740245469456,-500.0,0.00014045,2]
[354106825,1740245469466,-500.0,0.00014045,2]
[354106826,1740245469475,-500.0,0.00014045,2]
[354106827,1740245469484,-500.0,0.00014045,2]
[354106828,1740245469493,-500.0,0.00014045,2]
[354106829,1740245469502,-617.44443821,0.00014045,2]
[354106830,1740245469512,-500.0,0.00014045,2]
[354106831,1740245469522,-500.0,0.00014045,2]
[354106832,1740245469531,-500.0,0.00014045,2]
[354106833,1740245469541,-500.0,0.00014045,2]
[354106834,1740245469550,-500.0,0.00014045,2]
[354106835,1740245469559,-500.0,0.00014045,2]
[354106836,1740245469568,-500.0,0.00014045,2]
[354106837,1740245469578,-500.0,0.00014045,2]
[354106838,1740245469587,-500.0,0.00014045,2]
[354106839,1740245469596,-500.0,0.00014045,2]
[354106840,1740245469605,-500.0,0.00014045,2]
[354106841,1740245469614,-500.0,0.00014045,2]
[354106842,1740245469623,-500.0,0.00014045,2]
[354106843,1740245469633,-500.0,0.00014045,2]
[354106844,1740245469642,-500.0,0.00014045,2]
[354106845,1740245469651,-500.0,0.00014045,2]
[354106846,1740245469660,-500.0,0.00014045,2]
[354106847,1740245469669,-500.0,0.00014045,2]
[354106848,1740245469679,-500.0,0.00014045,2]
[354106849,1740245469688,-874.0,0.00014045,2]
[354106850,1740245469698,-500.0,0.00014045,2]
[354106851,1740245469707,-500.0,0.00014045,2]
[354106852,1740245469717,-500.0,0.00014045,2]
[354106853,1740245469726,-500.0,0.00014045,2]
[354106854,1740245469735,-500.0,0.00014045,2]
[354106855,1740245469745,-500.0,0.00014045,2]
[354106856,1740245469754,-500.0,0.00014045,2]
[354106857,1740245469764,-511.0,0.00014045,2]
[354106858,1740245469773,-150.0,0.00014059,2]
[354106859,1740245469782,-5008.91266,0.0001406,2]
[354106860,1740245469791,-500.0,0.00014068,2]
[354106861,1740245469800,-1085.32,0.00014099,2]
[354106862,1740245469809,-1196.79,0.00014106,7]
[354106863,1740245469819,-1196.79,0.00014106,7]
[354106864,1740245469832,-500.95,0.00014126,2]
[354106865,1740245469842,-500.0,0.00014126,2]
[354106866,1740245469852,-695.79,0.00014126,2]
[354106867,1740245469863,-500.0,0.00014126,2]
[354106868,1740245469873,-1511.41,0.00014126,2]
[354106869,1740245469883,-500.0,0.00014126,2]
[354106870,1740245469893,-500.0,0.00014126,2]
[354106871,1740245469904,-500.0,0.00014126,2]
[354106872,1740245469914,-500.0,0.00014126,2]
[354106873,1740245469924,-500.0,0.00014126,2]
[354106874,1740245469933,-500.0,0.00014126,2]
[354106875,1740245469943,-500.0,0.00014126,2]
[354106876,1740245469952,-500.0,0.00014126,2]
[354106877,1740245469962,-500.0,0.00014127,2]
[354106878,1740245469972,-500.0,0.00014127,2]
[354106879,1740245469981,-698.53,0.00014127,2]
[354106880,1740245469991,-593.32,0.00014127,2]
[354106881,1740245470000,-500.0,0.00014127,2]
[354106882,1740245470009,-358.08,0.00014127,2]
[354106883,1740245470018,-526.03,0.00014127,2]
[354106884,1740245470028,-500.0,0.00014127,2]
[354106885,1740245470038,-500.0,0.0001415,2]
[354106886,1740245470047,-500.95,0.00014208,2]
[354106887,1740245470056,-500.0,0.00014208,2]
[354106888,1740245470066,-695.79,0.00014208,2]
[354106889,1740245470076,-500.0,0.00014208,2]
[354106890,1740245470085,-1511.41,0.00014208,2]
[354106891,1740245470095,-579.24,0.00014208,2]
[354106892,1740245470104,-500.0,0.00014208,2]
[354106893,1740245470113,-500.0,0.00014208,2]
[354106894,1740245470122,-500.0,0.00014208,2]
[354106895,1740245470132,-500.0,0.00014208,2]
[354106896,1740245470141,-315.68,0.00014208,2]
[354106897,1740245470151,-500.0,0.00014208,2]
[354106898,1740245470160,-264.33627042,0.00014208,2]
[354106899,1740245470170,-333.76,0.00014209,2]
[354106900,1740245470179,-500.0,0.00014209,2]
[354106901,1740245470189,-698.53,0.00014209,2]
[354106902,1740245470198,-593.32,0.00014209,2]
[354106903,1740245470208,-526.03,0.00014209,2]
[354106904,1740245470217,-176.04,0.00014209,2]
[354106905,1740245470226,-500.0,0.00014232,2]
[354106906,1740245470235,-1085.32,0.00014236,2]
[354106907,1740245470245,-837.68560998,0.00014247,2]
[354106908,1740245470258,-500.95,0.0001429,2]
[354106909,1740245470272,-695.79,0.0001429,2]
[354106910,1740245470282,-500.0,0.0001429,2]
[354106911,1740245470292,-1511.41,0.0001429,2]
[354106912,1740245470303,-500.0,0.0001429,2]
[354106913,1740245470312,-500.0,0.0001429,2]
[354106914,1740245470322,-500.0,0.0001429,2]
[354106915,1740245470331,-500.0,0.0001429,2]
[354106916,1740245470341,-234.16,0.0001429,2]
[354106917,1740245470350,-500.0,0.00014291,2]
[354106918,1740245470360,-698.53,0.00014291,2]
[354106919,1740245470369,-593.32,0.00014291,2]
[354106920,1740245470379,-526.03,0.00014291,2]
[354106921,1740245470389,-500.0,0.00014314,2]
[354106922,1740245470398,-500.95,0.00014372,2]
[354106923,1740245470407,-695.79,0.00014372,2]
[354106924,1740245470417,-1511.41,0.00014372,2]
[354106925,1740245470427,-500.0,0.00014372,2]
[354106926,1740245470436,-500.0,0.00014372,2]
[354106927,1740245470446,-500.0,0.00014372,2]
[354106928,1740245470455,-1085.32,0.00014373,2]
[354106929,1740245470572,-698.53,0.00014373,2]
[354106930,1740245470582,-593.32,0.00014373,2]
[354106931,1740245470591,-526.03,0.00014373,2]
[354106932,1740245470600,-1196.79,0.0001438,7]
[354106933,1740245470609,-1196.79,0.0001438,7]
[354106934,1740245470619,-500.0,0.00014396,2]
[354106935,1740245470628,-360.76842504,0.000144,7]
[354106936,1740245470638,-150.0,0.0001442,2]
[354106937,1740245470647,-302.32,0.00014442,2]
[354106938,1740245470656,-500.95,0.00014455,2]
[354106939,1740245470665,-695.79,0.00014455,2]
[354106940,1740245470675,-1511.41,0.00014455,2]
[354106941,1740245470684,-542.44,0.00014455,2]
[354106942,1740245470694,-402.56,0.00014455,2]
[354106943,1740245470703,-500.0,0.00014455,2]
[354106944,1740245470714,-698.53,0.00014456,2]
[354106945,1740245470724,-593.32,0.00014456,2]
[354106946,1740245470734,-526.03,0.00014456,2]
[354106947,1740245470743,-500.0,0.00014479,2]
[354106948,1740245470753,-1085.32,0.0001451,2]
[354106949,1740245470762,-180.09185047,0.00014511,2]
[354106950,1740245470774,-500.95,0.00014537,2]
[354106951,1740245470783,-695.79,0.00014537,2]
[354106952,1740245470792,-1511.41,0.00014537,2]
[354106953,1740245470801,-500.0,0.00014537,2]
[354106954,1740245470810,-698.53,0.00014538,2]
[354106955,1740245470823,-593.32,0.00014538,2]
[354106956,1740245470832,-526.03,0.00014538,2]
[354106957,1740245470841,-500.0,0.00014561,2]
[354106958,1740245470851,-500.95,0.00014619,2]
[354106959,1740245470861,-695.79,0.00014619,2]
[354106960,1740245470870,-1511.41,0.00014619,2]
[354106961,1740245470879,-259.5,0.00014619,2]
[354106962,1740245470888,-698.53,0.0001462,2]
[354106963,1740245470898,-593.32,0.0001462,2]
[354106964,1740245470908,-526.03,0.0001462,2]
[354106965,1740245470918,-402.78729316,0.00014622,2]
[354106966,1740245470927,-1000.0,0.00014633,2]
[354106967,1740245470937,-500.0,0.00014635,2]
[354106968,1740245470948,-521.84,0.00014643,2]
[354106969,1740245470958,-1085.32,0.00014647,2]
[354106970,1740245470968,-1196.79,0.00014654,7]